fUST/lending_fUST_20250218
["ID","MTS","AMOUNT","RATE_DAILY","PERIOD"]
[353456137,1739845840228,-518.37,0.0001526,2]
[353456138,1739845840237,-868.89,0.0001526,2]
[353456139,1739845840246,-1492.21,0.0001526,2]
[353456140,1739845840256,-508.7,0.0001526,2]
[353456141,1739845840265,-574.0,0.0001526,2]
[353456142,1739845840275,-500.0,0.00015263,2]
[353456143,1739845840284,-994.63,0.00015342,2]
[353456144,1739845840294,-1033.68,0.00015342,2]
[353456145,1739845840391,-1023.76,0.00015342,2]
[353456146,1739845840401,-635.93988844,0.00015342,2]
[353456148,1739845840410,-6703.7,0.00015342,2]
[353456149,1739845840421,-518.37,0.00015342,2]
[353456150,1739845840431,-868.89,0.00015342,2]
[353456151,1739845840440,-1492.21,0.00015342,2]
[353456152,1739845840451,-508.7,0.00015342,2]
[353456153,1739845840461,-574.0,0.00015342,2]
[353456154,1739845840471,-500.0,0.00015363,2]
[353456155,1739845840481,-13603.1088846,0.00015414,2]
[353456156,1739845840491,-191.06554011,0.00015414,2]
[353456157,1739845840500,-994.63,0.00015424,2]
[353456158,1739845840510,-1033.68,0.00015424,2]
[353456159,1739845840519,-1023.76,0.00015424,2]
[353456160,1739845840528,-6703.7,0.00015424,2]
[353456161,1739845840539,-518.37,0.00015424,2]
[353456162,1739845840548,-868.89,0.00015424,2]
[353456163,1739845840557,-1492.21,0.00015424,2]
[353456164,1739845840567,-508.7,0.00015424,2]
[353456165,1739845840576,-574.0,0.00015424,2]
[353456166,1739845840586,-500.0,0.00015463,2]
[353456167,1739845840595,-994.63,0.00015506,2]
[353456168,1739845840604,-1033.68,0.00015506,2]
[353456169,1739845840614,-1023.76,0.00015506,2]
[353456170,1739845840623,-6703.7,0.00015506,2]
[353456171,1739845840632,-518.37,0.00015506,2]
[353456172,1739845840641,-868.89,0.00015506,2]
[353456173,1739845840650,-1492.21,0.00015506,2]
[353456174,1739845840660,-508.7,0.00015506,2]
[353456175,1739845840670,-574.0,0.00015506,2]
[353456176,1739845840679,-500.0,0.00015563,2]
[353456177,1739845840689,-994.63747821,0.00015589,2]
[353456178,1739845840698,-1033.82818203,0.00015589,2]
[353456179,1739845840707,-1023.93787979,0.00015589,2]
[353456180,1739845840718,-6703.8314,0.00015589,2]
[353456181,1739845840727,-518.39991272,0.00015589,2]
[353456182,1739845840737,-869.04206812,0.00015589,2]
[353456183,1739845840746,-1492.3509461,0.00015589,2]
[353456184,1739845840756,-508.83856243,0.00015589,2]
[353456185,1739845840765,-574.17531645,0.00015589,2]
[353456186,1739845840774,-500.0,0.00015663,2]
[353456187,1739845840783,-13603.1088846,0.00015686,2]
[353456188,1739845840793,-191.06554011,0.00015686,2]
[353456189,1739845840802,-6222.82490467,0.00015696,2]
[353456190,1739845840811,-500.0,0.00015763,2]
[353456191,1739845840820,-500.0,0.00015863,2]
[353456192,1739845840829,-150.0,0.00015933,4]
[353456193,1739845840838,-150.0,0.00015933,4]
[353456194,1739845840847,-500.0,0.00015963,2]
[353456195,1739845840858,-5305.0,0.00016,7]
[353456196,1739845840867,-150.0,0.00016,2]
[353456197,1739845840876,-500.0,0.00016063,2]
[353456198,1739845840887,-500.0,0.00016163,2]
[353456199,1739845840896,-753.97,0.00016164,2]
[353456200,1739845840905,-3000.0,0.000162,2]
[353456201,1739845840914,-500.0,0.00016263,2]
[353456202,1739845840924,-2000.0,0.000163,2]
[353456203,1739845840933,-157.22,0.000163,31]
[353456204,1739845840943,-157.22,0.000163,31]
[353456205,1739845840952,-157.22,0.000163,31]
[353456206,1739845840962,-157.22,0.000163,31]
[353456207,1739845840971,-157.22,0.000163,31]
[353456208,1739845840980,-157.22,0.000163,31]
[353456209,1739845840989,-157.22,0.000163,31]
[353456210,1739845840998,-500.0,0.00016363,2]
[353456211,1739845841007,-300.0,0.000164,6]
[353456212,1739845841017,-159.654656,0.00016404,3]
[353456213,1739845841026,-159.654656,0.00016438,3]
[353456214,1739845841035,-500.0,0.00016438,2]
[353456215,1739845841045,-500.0,0.00016438,2]
[353456216,1739845841054,-587.0,0.00016449,2]
[353456217,1739845841063,-500.0,0.00016463,2]
[353456218,1739845841072,-22469.87540959,0.000165,2]
[353456219,1739845841081,-563.51319081,0.000165,15]
[353456220,1739845841090,-827.38565465,0.000165,2]
[353456221,1739845841100,-500.0,0.00016563,2]
[353456222,1739845841109,-500.0,0.00016663,2]
[353456223,1739845841118,-628.62214907,0.00016672,2]
[353456224,1739845841128,-13603.1088846,0.00016762,2]
[353456225,1739845841139,-191.06554011,0.00016762,2]
[353456226,1739845841149,-500.0,0.00016763,2]
[353456227,1739845841159,-2202.436,0.00016772,2]
[353456228,1739845841168,-217.177609,0.00016772,2]
[353456229,1739845841177,-217.177609,0.00016772,2]
[353456230,1739845841186,-217.177609,0.00016772,2]
[353456231,1739845841195,-217.177609,0.00016772,2]
[353456232,1739845841204,-217.177609,0.00016772,2]
[353456233,1739845841214,-217.177609,0.00016772,2]
[353456234,1739845841223,-4410.22244983,0.00016772,5]
[353456235,1739845841233,-13599.99923806,0.00016772,10]
[353456236,1739845841242,-30000.0,0.00016772,2]
[353456238,1739845841251,-1076.28906253,0.00016772,7]
[353456239,1739845841260,-799.96631137,0.00016772,2]
[353456240,1739845841270,-293.29339605,0.00016772,2]
[353456241,1739845841280,-812.35067191,0.00016772,2]
[353456242,1739845841289,-323.0599397,0.00016772,2]
[353456243,1739845841299,-288.32311973,0.00016772,2]
[353456244,1739845841308,-1194.79674179,0.00016772,2]
[353456245,1739845841317,-51079.93539142,0.00016772,2]
[353456246,1739845841326,-4154.70559158,0.00016772,2]
[353456247,1739845841335,-13615.98856936,0.00016772,2]
[353456248,1739845841344,-354.91360922,0.00016772,2]
[353456249,1739845841354,-462.57912853,0.00016772,2]
[353456250,1739845841363,-177.06170987,0.00016772,2]
[353456251,1739845841372,-580.18683319,0.00016772,2]
[353456252,1739845841385,-218.58041934,0.00016772,15]
[353456253,1739845841394,-1155.2090496,0.00016772,15]
[353456254,1739845841404,-187.1526352,0.00016772,2]
[353456255,1739845841413,-5822.54806415,0.00016772,2]
[353456256,1739845841422,-15665.03505019,0.00016772,2]
[353456257,1739845841432,-498.0,0.00016772,7]
[353456258,1739845841441,-501.64369293,0.00016772,2]
[353456259,1739845841451,-251.50458989,0.00016772,7]
[353456260,1739845841460,-154.53866114,0.00016772,2]
[353456261,1739845841470,-6074.78537352,0.00016772,7]
[353456262,1739845841479,-10178.89259134,0.00016772,2]
[353456263,1739845841489,-6217.00633812,0.00016772,2]
[353456264,1739845841498,-155.64834191,0.00016772,2]
[353456265,1739845841508,-1693.77747707,0.00016772,2]
[353456267,1739845841517,-1381.13103956,0.00016772,2]
[353456269,1739845841526,-299.78873449,0.00016772,2]
[353456271,1739845841535,-882.21280677,0.00016772,2]
[353456273,1739845841544,-39694.14274089,0.00016772,7]
[353456275,1739845841554,-4097.67875162,0.00016772,2]
[353456276,1739845841563,-163.43954963,0.00016772,2]
[353456277,1739845841572,-436.4516834,0.00016772,3]
[353456278,1739845841582,-3002.6050791,0.00016772,3]
[353456279,1739845841591,-22182.6143006,0.00016772,20]
[353456280,1739845841600,-9900.0,0.00016772,28]
[353456281,1739845841610,-3913.35195854,0.00016772,2]
[353456282,1739845841619,-601.38875805,0.00016772,30]
[353456283,1739845841629,-500.0,0.00016772,2]
[353456284,1739845841641,-11852.56,0.00016772,2]
[353456285,1739845841651,-1221.36381663,0.00016772,30]
[353456286,1739845841660,-3165.17560497,0.00016772,30]
[353456287,1739845841671,-238.07086008,0.00016772,30]
[353456288,1739845841681,-1814.50517813,0.00016772,30]
[353456289,1739845841690,-1003.04,0.00016772,30]
[353456290,1739845841699,-90063.09854663,0.00016772,2]
[353456291,1739845841708,-16647.55672959,0.00016772,2]
[353456292,1739845841718,-300.0,0.00016772,2]
[353456293,1739845841727,-251.71466055,0.00016772,2]
[353456294,1739845841737,-1254.87142656,0.00016772,2]
[353456295,1739845841746,-50828.46597629,0.00016772,14]
[353456296,1739845841755,-21984.03999944,0.00016772,15]
[353456297,1739845841764,-1231.3485543,0.00016772,35]
[353456298,1739845841774,-3048.69157651,0.00016772,2]
[353456299,1739845841783,-188.55661505,0.00016772,12]
[353456300,1739845841793,-1063.8912114,0.00016772,10]
[353456301,1739845841802,-520.09706001,0.00016772,2]
[353456302,1739845841811,-1999.999999,0.00016772,7]
[353456303,1739845841821,-440.69041652,0.00016772,2]
[353456304,1739845841831,-2992.1357704,0.00016772,7]
[353456305,1739845841840,-1846.57138243,0.00016772,2]
[353456306,1739845841849,-81378.33809251,0.00016772,2]
[353456307,1739845841859,-532.48780673,0.00016772,3]
[353456308,1739845841868,-28427.8728176,0.00016772,7]
[353456309,1739845841882,-151.08313858,0.00016772,2]
[353456310,1739845841896,-11392.73409933,0.00016772,7]
[353456311,1739845841906,-1639.72195542,0.00016772,2]
[353456312,1739845841915,-189.0,0.00016772,30]
[353456313,1739845841924,-533.4,0.00016772,30]
[353456314,1739845841933,-1000.0,0.00016772,30]
[353456315,1739845841942,-1000.0,0.00016772,30]
[353456316,1739845841952,-1000.0,0.00016772,30]
[353456317,1739845841962,-1000.0,0.00016772,30]
[353456318,1739845841971,-1000.0,0.00016772,30]
[353456319,1739845841980,-1813.871455,0.00016772,30]
[353456320,1739845841990,-250.0,0.00016772,10]
[353456321,1739845841999,-500.0,0.00016773,2]
[353456322,1739845842008,-500.0,0.00016773,2]
[353456323,1739845842018,-2731.68504005,0.00016787,2]
[353456324,1739845842028,-280.518484,0.00016793,2]
[353456325,1739845842037,-280.518484,0.00016793,2]
[353456326,1739845842047,-280.518484,0.00016793,2]
[353456327,1739845842057,-280.518484,0.00016793,2]
[353456328,1739845842066,-280.518484,0.00016793,2]
[353456329,1739845842075,-280.518484,0.00016793,2]
[353456330,1739845842083,-6559.54600587,0.000168,7]
[353456331,1739845842092,-5901.63264366,0.000168,2]
[353456332,1739845842102,-7438.69753278,0.0001686,7]
[353456333,1739845842111,-217.177609,0.0001686,2]
[353456334,1739845842120,-217.177609,0.0001686,2]
[353456335,1739845842129,-500.0,0.00016863,2]
[353456336,1739845842140,-500.0,0.00016963,2]
[353456337,1739845842150,-500.0,0.00016973,2]
[353456338,1739845842161,-40809.3266538,0.0001699,2]
[353456339,1739845842170,-573.19662033,0.0001699,2]
[353456340,1739845842180,-13697.48608439,0.00017,7]
[353456341,1739845842189,-26110.47181972,0.00017,10]
[353456342,1739845842199,-8090.88977131,0.00017,4]
[353456343,1739845842208,-300.0,0.00017,4]
[353456344,1739845842217,-151.0,0.00017,5]
[353456345,1739845842227,-151.230181,0.00017,2]
[353456346,1739845842237,-1000.0,0.00017,17]
[353456347,1739845842246,-13037.20061914,0.00017,10]
[353456348,1739845842256,-68999.999999,0.00017,2]
[353456349,1739845842265,-280.518484,0.00017,2]
[353456350,1739845842274,-280.518484,0.00017,2]
[353456351,1739845842284,-500.0,0.00017063,2]
[353456352,1739845842293,-217.177609,0.000171,2]
[353456353,1739845842302,-217.177609,0.000171,2]
[353456354,1739845842312,-13603.1088846,0.000171,2]
[353456355,1739845842321,-191.06554011,0.000171,2]
[353456356,1739845842330,-29811.57494997,0.0001711,2]
[353456357,1739845842340,-27206.2177692,0.00017145,2]
[353456358,1739845842350,-955.32770055,0.00017145,2]
[353456359,1739845842360,-280.518484,0.00017155,2]
[353456360,1739845842370,-280.518484,0.00017155,2]
[353456361,1739845842380,-280.518484,0.00017155,2]
[353456362,1739845842392,-280.518484,0.00017155,2]
[353456363,1739845842401,-217.177609,0.00017155,2]
[353456364,1739845842410,-217.177609,0.00017155,2]
[353456365,1739845842420,-217.177609,0.00017155,2]
[353456366,1739845842430,-217.177609,0.00017155,2]
[353456367,1739845842440,-63062.11341106,0.00017155,5]
[353456368,1739845842457,-236936.88658894,0.00017155,5]
[353456369,1739845842467,-133359.86151087,0.00017155,15]
[353456370,1739845842677,-3366.87074123,0.00017155,15]
[353456371,1739845842689,-4179.69112426,0.00017155,15]
[353456372,1739845842701,-12056.09188581,0.00017155,15]
[353456373,1739845842713,-47037.48473783,0.00017155,15]
[353456374,1739845842723,-500.0,0.00017163,2]
[353456375,1739845842732,-396.0,0.00017174,2]
[353456376,1739845842741,-500.0,0.00017263,2]
[353456377,1739845842751,-2000.0,0.000173,2]
[353456378,1739845842760,-1039.04078362,0.00017321,2]
[353456379,1739845842769,-1000.0,0.00017321,2]
[353456380,1739845842856,-400.0,0.00017332,2]
[353456381,1739845842867,-500.0,0.00017363,2]
[353456382,1739845842876,-150.0,0.00017368,2]
[353456383,1739845842888,-150.0,0.00017368,2]
[353456384,1739845842899,-159.654656,0.00017371,2]
[353456385,1739845842908,-500.0,0.00017463,2]
[353456386,1739845842920,-340.0,0.000175,5]
[353456387,1739845842930,-498.55163381,0.00017521,2]
[353456388,1739845842939,-753.97,0.00017534,4]
[353456389,1739845842949,-500.0,0.00017563,2]
[353456390,1739845842959,-2041.30985265,0.000176,2]
[353456391,1739845842969,-500.0,0.00017663,2]
[353456392,1739845842978,-78433.98833609,0.000177,2]
[353456393,1739845842989,-2350.00000001,0.000177,2]
[353456394,1739845843034,-14388.44638081,0.00016772,5]
[353456395,1739845843043,-628.62214902,0.00016808,2]
[353456396,1739845843052,-21603.47652385,0.000177,2]
[353456397,1739845843061,-2021.23,0.00017723,2]
[353456398,1739845843071,-500.0,0.00017763,2]
[353456399,1739845843081,-1799.0,0.00017772,2]
[353456400,1739845843091,-1002.99,0.00017772,30]
[353456401,1739845843100,-1000.0,0.00017772,30]
[353456402,1739845843110,-500.0,0.00017863,2]
[353456403,1739845843121,-300.0,0.000179,7]
[353456404,1739845843132,-500.0,0.00017963,2]
[353456405,1739845843143,-200.0,0.0001799,5]
[353456406,1739845843153,-8929.65162089,0.00018,2]
[353456407,1739845843162,-1299.53479375,0.00018,10]
[353456408,1739845843171,-418442.46188629,0.00018,15]
[353456409,1739845843183,-42718.57397917,0.00018,15]
[353456410,1739845843195,-5669.5005,0.00018,15]
[353456423,1739845843737,-634.52372319,0.00018,15]
[353456424,1739845843749,-1149.9999994,0.00018,15]
[353456425,1739845843792,-4720.83954907,0.00018,15]
[353456426,1739845843803,-8473.9215405,0.00018,15]
[353456427,1739845843816,-13194.70700056,0.00018,15]
[353456428,1739845843827,-4550.97071081,0.00018,15]
[353456429,1739845843839,-487.42764058,0.00018,15]
[353456430,1739845843851,-17247.99999993,0.00018,15]
[353456431,1739845843863,-70786.10000121,0.00018,15]
[353456432,1739845843874,-2110.0000057,0.00018,15]
[353456433,1739845843901,-4206.21136439,0.00018,15]
[353456434,1739845843913,-1396.35,0.00018,15]
[353456441,1739845846683,-628.62214902,0.00016945,2]
[353456442,1739845846693,-306.55785098,0.00018,15]
[353456443,1739845846705,-652.899999,0.00018,15]
[353456446,1739846730130,-158.99207633,0.00010472,2]
[353456447,1739846730154,-158.99207633,0.00010578,2]
[353456448,1739846730175,-400.0,0.00010685,2]
[353456449,1739846730196,-140.19601973,0.00012742,2]
[353456450,1739846825131,-158.99207633,0.00010367,2]
[353456451,1739846825154,-213.11599463,0.00012742,2]
[353456452,1739846839118,-604.02667975,0.00012742,2]
[353456453,1739846849166,-709.11189549,0.00012742,2]
[353456454,1739846849215,-862.3112478,0.00013689,2]
[353456460,1739847022857,400.0,0.00010685,2]
[353456488,1739847032010,-752.73359198,0.00013689,2]
[353456489,1739847032021,-2430.1275542,0.00013689,2]
[353456490,1739847032066,-2955.25071823,0.00013689,2]
[353456491,1739847032076,-300.0,0.00013697,2]
[353456492,1739847032085,-503.91894391,0.00013698,2]
[353456493,1739847032095,-500.0,0.00013698,2]
[353456494,1739847032105,-503.29044827,0.00013698,2]
[353456495,1739847032114,-506.97765438,0.00013698,2]
[353456496,1739847032124,-505.1561319,0.00013698,2]
[353456497,1739847032133,-506.70384213,0.00013698,2]
[353456498,1739847032143,-501.3126074,0.00013698,2]
[353456499,1739847032152,-507.41425606,0.00013698,2]
[353456500,1739847032162,-500.0,0.00013698,2]
[353456501,1739847032171,-507.81304366,0.00013698,2]
[353456502,1739847032180,-500.0,0.00013698,2]
[353456503,1739847032190,-500.0,0.00013698,2]
[353456504,1739847032199,-506.62567497,0.00013698,2]
[353456505,1739847032208,-500.0,0.00013698,2]
[353456506,1739847032218,-500.0,0.00013698,2]
[353456507,1739847032227,-505.2447664,0.00013698,2]
[353456508,1739847032237,-501.03902153,0.00013698,2]
[353456509,1739847032247,-500.0,0.00013698,2]
[353456510,1739847032256,-500.0,0.00013698,2]
[353456511,1739847032266,-420.83566936,0.00013698,2]
[353456512,1739847032275,-500.0,0.00013698,2]
[353456513,1739847032285,-102.22006016,0.00013698,2]
[353456514,1739847032297,-397.77993984,0.00013698,2]
[353456515,1739847032306,-95.87006016,0.00013698,2]
[353456516,1739847032328,-408.18755385,0.00013698,2]
[353456517,1739847032337,-20.95244615,0.00013698,2]
[353456518,1739847032362,-479.04755385,0.00013698,2]
[353456519,1739847032371,-500.0,0.00013698,2]
[353456520,1739847032381,-500.0,0.00013698,2]
[353456521,1739847032390,-500.0,0.00013698,2]
[353456522,1739847032399,-504.35597997,0.00013698,2]
[353456523,1739847032408,-500.0,0.00013698,2]
[353456524,1739847032418,-500.0,0.00013698,2]
[353456525,1739847032427,-502.88468559,0.00013698,2]
[353456526,1739847032436,-500.0,0.00013698,2]
[353456527,1739847032550,-500.0,0.00013698,2]
[353456528,1739847032563,-503.01551582,0.00013698,2]
[353456529,1739847032572,-504.39297638,0.00013698,2]
[353456530,1739847032582,-500.0,0.00013698,2]
[353456531,1739847032592,-500.0,0.00013698,2]
[353456532,1739847032601,-644.62,0.00013698,2]
[353456533,1739847032611,-500.0,0.00013698,2]
[353456534,1739847032621,-500.0,0.00013698,2]
[353456535,1739847032630,-505.35681926,0.00013698,2]
[353456536,1739847032640,-500.0,0.00013698,2]
[353456537,1739847032649,-503.95154257,0.00013698,2]
[353456538,1739847032659,-160.59479551,0.00013698,2]
[353456539,1739847032668,-500.0,0.00013698,2]
[353456540,1739847032677,-592.52,0.00013698,2]
[353456541,1739847032688,-398.75196014,0.00013698,2]
[353456542,1739847032698,-504.37111209,0.00013698,2]
[353456543,1739847032707,-507.05413396,0.00013698,2]
[353456544,1739847032717,-500.0,0.00013698,2]
[353456545,1739847032729,-309.70583106,0.00013698,2]
[353456546,1739847032739,-500.0,0.00013698,2]
[353456547,1739847032748,-504.36678167,0.00013698,2]
[353456548,1739847032758,-500.0,0.00013698,2]
[353456549,1739847032767,-505.19877476,0.00013698,2]
[353456550,1739847032779,-505.09829305,0.00013698,2]
[353456551,1739847032789,-501.52309198,0.00013698,2]
[353456552,1739847032799,-534.42,0.00013698,2]
[353456553,1739847032809,-500.0,0.0001378,2]
[353456554,1739847032819,-450.97759537,0.0001378,2]
[353456565,1739847038021,-49.02240463,0.0001378,2]
[353456566,1739847038031,-636.31,0.0001378,2]
[353456567,1739847038040,-556.34,0.0001378,2]
[353456568,1739847038049,-500.0,0.0001378,2]
[353456569,1739847038058,-289.03,0.0001378,2]
[353456570,1739847038068,-500.0,0.0001378,2]
[353456571,1739847038078,-500.0,0.0001378,2]
[353456572,1739847038087,-500.0,0.0001378,2]
[353456573,1739847038096,-479.65,0.0001378,2]
[353456574,1739847038105,-500.0,0.0001378,2]
[353456575,1739847038115,-500.0,0.0001378,2]
[353456576,1739847038124,-500.0,0.0001378,2]
[353456577,1739847038134,-269.32,0.0001378,2]
[353456578,1739847038143,-500.0,0.0001378,2]
[353456579,1739847038152,-500.0,0.0001378,2]
[353456580,1739847038162,-353.117,0.00013802,2]
[353456581,1739847038171,-294.50162273,0.00013863,2]
[353456582,1739847038181,-500.0,0.00013863,2]
[353456583,1739847038191,-613.59,0.00013863,2]
[353456584,1739847038200,-500.0,0.00013863,2]
[353456585,1739847038210,-500.0,0.00013863,2]
[353456586,1739847038219,-500.0,0.00013863,2]
[353456587,1739847038228,-500.0,0.00013863,2]
[353456588,1739847038237,-500.0,0.00013863,2]
[353456589,1739847038246,-500.0,0.00013863,2]
[353456590,1739847038255,-500.0,0.00013863,2]
[353456591,1739847038264,-500.0,0.00013863,2]
[353456592,1739847038274,-461.14,0.00013945,2]
[353456593,1739847038283,-500.0,0.00013945,2]
[353456594,1739847038292,-500.0,0.00013945,2]
[353456595,1739847038301,-500.0,0.00013945,2]
[353456596,1739847038310,-500.0,0.00013945,2]
[353456597,1739847038319,-548.44,0.00013945,2]
[353456598,1739847038328,-587.63,0.00013945,2]
[353456599,1739847038337,-500.0,0.00013945,2]
[353456600,1739847038346,-500.0,0.00013945,2]
[353456601,1739847038355,-500.0,0.00014024,2]
[353456602,1739847038364,-500.0,0.00014024,2]
[353456603,1739847038373,-500.0,0.00014024,2]
[353456604,1739847038382,-500.0,0.00014024,2]
[353456605,1739847038391,-500.0,0.00014024,2]
[353456606,1739847038400,-500.0,0.00014024,2]
[353456607,1739847038409,-500.0,0.00014024,2]
[353456608,1739847038419,-500.0,0.00014024,2]
[353456609,1739847038427,-500.0,0.00014024,2]
[353456610,1739847038437,-500.0,0.00014024,2]
[353456611,1739847038446,-500.0,0.00014024,2]
[353456612,1739847038456,-500.0,0.00014024,2]
[353456613,1739847038465,-500.0,0.00014024,2]
[353456614,1739847038474,-500.0,0.00014024,2]
[353456615,1739847038483,-500.0,0.00014024,2]
[353456616,1739847038492,-500.0,0.00014024,2]
[353456617,1739847038502,-500.0,0.00014024,2]
[353456618,1739847038511,-293.94932201,0.00014024,2]
[353456619,1739847038523,-206.05067799,0.00014024,2]
[353456620,1739847038532,-360.67729039,0.00014024,2]
[353456621,1739847038543,-139.32270961,0.00014024,2]
[353456622,1739847038553,-165.50701967,0.00014024,2]
[353456623,1739847038564,-334.49298033,0.00014024,2]
[353456624,1739847038574,-126.51770618,0.00014024,2]
[353456625,1739847038586,-373.48229382,0.00014024,2]
[353456626,1739847038595,-188.29002619,0.00014024,2]
[353456627,1739847038604,-500.0,0.00014024,2]
[353456628,1739847038613,-539.35084818,0.00014024,2]
[353456629,1739847038623,-500.0,0.00014024,2]
[353456630,1739847038631,-500.0,0.00014024,2]
[353456631,1739847038641,-500.0,0.00014024,2]
[353456632,1739847038651,-500.0,0.00014024,2]
[353456633,1739847038660,-500.0,0.00014024,2]
[353456634,1739847038670,-500.0,0.00014024,2]
[353456635,1739847038679,-500.0,0.00014024,2]
[353456636,1739847038688,-500.0,0.00014024,2]
[353456637,1739847038698,-323.65,0.00014027,2]
[353456638,1739847038707,-500.0,0.00014027,2]
[353456639,1739847038717,-500.0,0.00014027,2]
[353456640,1739847038726,-500.0,0.00014027,2]
[353456641,1739847038735,-500.0,0.00014027,2]
[353456642,1739847038744,-500.0,0.00014027,2]
[353456643,1739847038755,-500.0,0.00014109,2]
[353456644,1739847038764,-500.0,0.00014109,2]
[353456645,1739847038773,-574.33,0.00014109,2]
[353456646,1739847038786,-188.89,0.00014109,2]
[353456647,1739847038795,-427.5,0.00014109,2]
[353456648,1739847038805,-491.33,0.00014191,2]
[353456649,1739847038814,-500.0,0.00014191,2]
[353456650,1739847038823,-500.0,0.00014273,2]
[353456651,1739847038832,-500.0,0.00014356,2]
[353456652,1739847038841,-190.15,0.00014438,2]
[353456653,1739847038851,-538.0,0.00014473,2]
[353456654,1739847038861,-1970.697,0.00014473,2]
[353456655,1739847038871,-396.0,0.00014473,2]
[353456656,1739847038880,-3000.0,0.00014584,2]
[353456657,1739847038889,-150.0,0.000149,2]
[353456658,1739847038899,-300.0,0.000149,5]
[353456659,1739847038908,-420.0,0.0001501,2]
[353456660,1739847038918,-500.0,0.000154,2]
[353456661,1739847038927,-500.0,0.000155,2]
[353456662,1739847038937,-500.0,0.000156,2]
[353456663,1739847038946,-500.0,0.000157,2]
[353456664,1739847038956,-500.0,0.000158,2]
[353456665,1739847038966,-500.0,0.000159,2]
[353456666,1739847038975,-500.0,0.00016,2]
[353456667,1739847038984,-500.0,0.000161,2]
[353456668,1739847038993,-500.0,0.000162,2]
[353456669,1739847039002,-500.0,0.000163,2]
[353456670,1739847039011,-157.26,0.000163,31]
[353456671,1739847039021,-157.26,0.000163,31]
[353456672,1739847039031,-157.26,0.000163,31]
[353456673,1739847039040,-157.26,0.000163,31]
[353456674,1739847039049,-157.26,0.000163,31]
[353456675,1739847039058,-157.26,0.000163,31]
[353456676,1739847039067,-157.26,0.000163,31]
[353456677,1739847039076,-500.0,0.000164,2]
[353456678,1739847039085,-843.0,0.000164,2]
[353456679,1739847039095,-300.0,0.000164,6]
[353456680,1739847039104,-500.0,0.00016438,2]
[353456681,1739847039114,-587.0,0.0001645,2]
[353456682,1739847039123,-500.0,0.000165,2]
[353456683,1739847039132,-500.0,0.000166,2]
[353456684,1739847039142,-500.0,0.000167,2]
[353456685,1739847039151,-193.625356,0.00016749,7]
[353456686,1739847039160,-1000.0,0.00016759,30]
[353456687,1739847039170,-1000.0,0.00016759,30]
[353456688,1739847039180,-1000.0,0.00016759,30]
[353456689,1739847039189,-1000.0,0.00016759,30]
[353456690,1739847039199,-1000.0,0.00016759,30]
[353456691,1739847039208,-1187.81649,0.00016759,30]
[353456692,1739847039218,-399.198651,0.00016759,10]
[353456693,1739847039228,-691.14,0.00016799,2]
[353456694,1739847039237,-500.0,0.000168,2]
[353456695,1739847039246,-1000.0,0.000168,10]
[353456696,1739847039255,-500.0,0.000169,2]
[353456697,1739847039265,-500.0,0.00017,2]
[353456698,1739847039274,-500.0,0.000171,2]
[353456699,1739847039283,-500.0,0.000172,2]
[353456700,1739847039292,-500.0,0.000173,2]
[353456701,1739847039301,-400.0,0.00017332,2]
[353456702,1739847039311,-160.46487,0.00017345,3]
[353456703,1739847039320,-500.0,0.000174,2]
[353456704,1739847039329,-396.0,0.00017473,2]
[353456705,1739847039338,-500.0,0.000175,2]